bitfinex-derivatives/quotes_SOLF0:USTF0_20240918
["timestamp","ask_amount","ask_price","bid_price","bid_amount"]
[1726657577229,9.48,129.42,129.4,19.48503475]
[1726657577525,9.48,129.42,129.41,51.288861]
[1726657577721,5.68,129.42,129.41,51.288861]
[1726657578024,9.48,129.42,129.38,9.48]
[1726657578224,9.48,129.42,129.38,13.3244311]
[1726657579720,9.48,129.39,129.38,3.8444311]
[1726657579923,9.48,129.39,129.35,12.2842]
[1726657580123,9.48,129.39,129.36,1.42064759]
[1726657580320,9.48,129.39,129.37,1.42064759]
[1726657580525,9.48,129.39,129.36,3.82703549]
[1726657580725,9.48,129.39,129.37,1.42068203]
[1726657580928,9.48,129.38,129.35,6.57634265]
[1726657581222,9.48,129.38,129.36,1.42068243]
[1726657581417,9.48,129.38,129.37,1.42068243]
[1726657582122,9.48,129.38,129.35,6.57634265]
[1726657582825,9.48,129.37,129.35,6.57634265]
[1726657583133,9.48,129.37,129.35,5.18314265]
[1726657585030,9.48,129.39,129.35,5.18314265]
[1726657586125,9.48,129.39,129.35,14.66314265]
[1726657588424,150.83,129.49,129.37,9.48]
[1726657588624,9.48,129.41,129.37,13.30926801]
[1726657590926,9.48,129.44,129.4,9.48]
[1726657591127,9.48,129.44,129.41,9.48]
[1726657591430,9.48,129.45,129.41,9.48]
[1726657593032,9.48,129.44,129.42,51.22880817]
[1726657593234,9.48,129.44,129.43,51.22880817]
[1726657596130,154.64,129.53,129.43,51.22880817]
[1726657596325,9.48,129.46,129.44,51.22880817]
[1726657596633,147.84,129.53,129.45,51.22880817]
[1726657596834,9.48,129.46,129.41,9.48]
[1726657597033,147.84,129.53,129.42,60.65856249]
[1726657597238,9.48,129.46,129.43,17.6255465]
[1726657597437,9.48,129.45,129.43,37.06845018]
[1726657597630,9.48,129.44,129.43,31.73565881]
[1726657597937,9.48,129.44,129.43,33.55204819]
[1726657598134,9.48,129.44,129.43,19.44193588]
[1726657598534,9.48,129.44,129.43,37.06280321]
[1726657600147,9.48,129.44,129.43,19.44193588]
[1726657600344,9.48,129.44,129.41,13.27784205]
[1726657600945,9.48,129.43,129.41,3.79784205]
[1726657601251,9.48,129.43,129.4,1.4763]
[1726657601549,9.48,129.43,129.4,14.73152729]
[1726657601739,9.48,129.42,129.4,5.25152729]
[1726657603946,9.48,129.42,129.4,3.77522729]
[1726657604243,9.48,129.42,129.39,1.4846]
[1726657604651,9.48,129.42,129.39,5.38980303]
[1726657606949,9.48,129.44,129.4,9.48]
[1726657608459,9.48,129.43,129.39,14.86980303]
[1726657608754,9.48,129.43,129.4,20.86226964]
[1726657608954,9.48,129.43,129.4,19.44193588]
[1726657609155,9.48,129.43,129.41,17.63018471]
[1726657609448,9.48,129.43,129.4,19.44193588]
[1726657609650,9.48,129.43,129.41,37.07139364]
[1726657609852,9.48,129.43,129.39,14.86980303]
[1726657610047,9.48,129.43,129.4,51.18990232]
[1726657610248,9.48,129.43,129.41,37.07665918]
[1726657610444,154.62,129.52,129.4,9.48]
[1726657610759,9.48,129.44,129.41,37.07804674]
[1726657610958,9.48,129.44,129.4,9.48]
[1726657611156,9.48,129.44,129.41,37.07745727]
[1726657611346,9.48,129.44,129.4,9.48]
[1726657611551,9.48,129.44,129.41,37.08064097]
[1726657611758,9.48,129.44,129.4,9.48]
[1726657612051,9.48,129.44,129.41,37.07785014]
[1726657612253,9.48,129.44,129.39,5.38980303]
[1726657612557,9.48,129.44,129.4,60.67015115]
[1726657612747,9.48,129.44,129.41,37.07683825]
[1726657613057,9.48,129.44,129.4,9.48]
[1726657613258,9.48,129.44,129.41,37.07797272]
[1726657613557,9.48,129.44,129.4,9.48]
[1726657613757,9.48,129.44,129.41,37.07661762]
[1726657613952,9.48,129.44,129.4,9.48]
[1726657614352,9.48,129.44,129.41,37.07800279]
[1726657614552,9.48,129.44,129.4,9.48]
[1726657614752,9.48,129.44,129.41,37.07868655]
[1726657614952,9.48,129.44,129.4,9.48]
[1726657615151,9.48,129.44,129.41,37.07868655]
[1726657615457,9.48,129.44,129.4,9.48]
[1726657616170,9.48,129.45,129.4,9.48]
[1726657616357,9.48,129.45,129.4,11.017]
[1726657618062,154.62,129.53,129.4,11.017]
[1726657618260,9.48,129.45,129.4,11.017]
[1726657619761,9.48,129.45,129.4,1.537]
[1726657619956,9.48,129.45,129.41,9.48]
[1726657622063,9.48,129.45,129.42,9.48]
[1726657623862,9.48,129.43,129.39,5.38980303]
[1726657624070,9.48,129.41,129.4,51.17264489]
[1726657625564,9.48,129.41,129.4,37.06414214]
[1726657626166,9.48,129.41,129.4,51.17592292]
[1726657629266,154.62,129.53,129.4,51.17592292]
[1726657629463,4.67,129.42,129.38,9.48]
[1726657629666,202.00453095,129.52,129.39,51.17998032]
[1726657629864,9.48,129.42,129.4,37.06948969]
[1726657630170,9.48,129.42,129.4,19.44346964]
[1726657630360,6.48,129.42,129.39,14.11049063]
[1726657630566,6.48,129.42,129.39,18.05271602]
[1726657630872,9.48,129.44,129.39,27.53271602]
[1726657631061,9.48,129.44,129.39,13.42222539]
[1726657631268,154.62,129.53,129.35,4.4851]
[1726657631269,146.96,129.53,129.4,9.48]
[1726657631570,146.96,129.53,129.42,9.48]
[1726657631870,9.48,129.49,129.44,9.48]
[1726657632071,6.48,129.49,129.45,9.48]
[1726657632273,6.48,129.49,129.45,13.36231315]
[1726657633575,143.16,129.53,129.45,13.36231315]
[1726657633775,5.58,129.48,129.45,9.48]
[1726657634278,5.58,129.48,129.45,13.2840153]
[1726657634470,2.58,129.48,129.45,9.48]
[1726657634666,143.16,129.53,129.45,9.48]
[1726657634874,6.48,129.49,129.45,9.48]
[1726657635068,139.27,129.53,129.47,9.48]
[1726657635272,9.48,129.52,129.47,3.94117002]
[1726657635473,9.48,129.51,129.46,9.48]
[1726657635668,9.48,129.51,129.46,13.24808462]
[1726657636074,9.48,129.51,129.47,9.48]
[1726657636971,9.48,129.51,129.47,13.29617038]
[1726657638074,9.48,129.52,129.47,9.48]
[1726657638583,9.48,129.52,129.47,13.28921644]
[1726657640073,150.8,129.61,129.48,9.48]
[1726657640270,9.48,129.51,129.48,3.88231919]
[1726657640473,9.48,129.51,129.47,9.48]
[1726657641077,9.48,129.51,129.47,13.34648087]
[1726657645481,6.48,129.51,129.47,9.48]
[1726657646178,9.48,129.5,129.47,3.89884506]
[1726657646376,9.48,129.5,129.46,9.48]
[1726657646978,9.48,129.5,129.46,13.26178699]
[1726657648585,9.48,129.5,129.46,3.78178699]
[1726657648780,9.48,129.48,129.45,9.48]
[1726657649081,9.48,129.48,129.45,13.43254497]
[1726657650382,9.48,129.47,129.45,3.95254497]
[1726657650580,202.00453095,129.59,129.41,13.8628]
[1726657650581,9.48,129.46,129.41,13.8628]
[1726657650778,9.48,129.45,129.41,13.8628]
[1726657650981,9.48,129.45,129.41,8.2974846]
[1726657652477,9.48,129.44,129.41,8.2974846]
[1726657653082,151.54,129.54,129.41,13.8628]
[1726657653283,9.48,129.45,129.41,13.8628]
[1726657653682,9.48,129.45,129.41,17.74846365]
[1726657656383,9.48,129.44,129.41,8.26846365]
[1726657659890,9.48,129.45,129.41,17.74846365]
[1726657660588,9.48,129.45,129.42,19.43101091]
[1726657660788,9.48,129.45,129.41,17.74846365]
[1726657660988,9.48,129.45,129.42,37.05975452]
[1726657661179,9.48,129.45,129.41,17.74846365]
[1726657661383,9.48,129.45,129.42,37.06002014]
[1726657661580,9.48,129.45,129.41,17.74846365]
[1726657661880,9.48,129.45,129.42,37.05838604]
[1726657662080,9.48,129.43,129.41,6.77726365]
[1726657662279,9.48,129.42,129.41,3.88566365]
[1726657662588,9.48,129.42,129.35,10.9809]
[1726657662791,9.48,129.39,129.36,51.18640061]
[1726657662989,202.00453095,129.51,129.37,51.18640061]
[1726657662990,9.48,129.38,129.37,51.18640061]
[1726657663693,9.48,129.38,129.37,37.07402568]
[1726657663895,9.48,129.38,129.37,19.44565247]
[1726657664291,9.48,129.38,129.35,5.32059519]
[1726657664497,9.48,129.38,129.36,51.2572577]
[1726657664798,9.48,129.38,129.35,5.32059519]
[1726657664994,9.48,129.38,129.36,51.25940883]
[1726657665293,9.48,129.38,129.35,5.32059519]
[1726657665499,9.48,129.38,129.36,52.68138473]
[1726657665798,9.48,129.38,129.36,14.13293833]
[1726657665997,9.48,129.38,129.34,11.014]
[1726657666197,9.48,129.38,129.35,52.6872721]
[1726657666396,9.48,129.38,129.36,52.6872721]
[1726657666597,9.48,129.38,129.34,11.014]
[1726657666798,9.48,129.38,129.35,52.68390913]
[1726657667004,9.48,129.38,129.36,1.42075194]
[1726657667199,9.48,129.38,129.36,37.12986063]
[1726657667394,9.48,129.38,129.36,19.47534982]
[1726657667594,9.48,129.38,129.35,3.88080771]
[1726657667799,9.48,129.38,129.36,1.42075242]
[1726657668001,9.48,129.38,129.36,3.80889078]
[1726657668196,9.48,129.38,129.34,11.014]
[1726657668197,9.48,129.37,129.34,1.534]
[1726657668392,9.48,129.37,129.35,1.42083336]
[1726657668598,9.48,129.37,129.35,3.80695753]
[1726657668902,9.48,129.37,129.34,1.534]
[1726657669101,9.48,129.37,129.35,1.42083532]
[1726657669400,9.48,129.37,129.35,3.89945533]
[1726657669594,9.48,129.37,129.34,1.534]
[1726657669799,9.48,129.37,129.35,1.42083889]
[1726657670108,9.48,129.36,129.35,3.88050904]
[1726657670302,9.48,129.36,129.32,2.8615]
[1726657670602,9.48,129.34,129.32,2.8615]
[1726657670804,337.0,129.49,129.32,12.3415]
[1726657670805,9.48,129.36,129.32,12.3415]
[1726657671300,9.48,129.38,129.33,9.48]
[1726657671694,5.58,129.39,129.32,2.8615]
[1726657671899,5.58,129.39,129.34,9.48]
[1726657672698,5.58,129.39,129.34,13.44224007]
[1726657674599,154.64,129.47,129.35,9.48]
[1726657674802,9.48,129.4,129.35,10.9408]
[1726657684014,9.48,129.38,129.35,1.4608]
[1726657684311,9.48,129.37,129.35,1.4608]
[1726657685504,9.48,129.36,129.35,1.4608]
[1726657687205,9.48,129.37,129.35,1.4608]
[1726657687407,154.66,129.47,129.35,1.4608]
[1726657687606,9.48,129.38,129.35,1.4608]
[1726657688011,9.48,129.38,129.35,5.41159986]
[1726657688213,9.48,129.38,129.35,1.4608]
[1726657688814,9.48,129.38,129.35,5.40734629]
[1726657689002,6.48,129.38,129.35,1.4608]
[1726657689208,9.48,129.39,129.35,14.75548539]
[1726657689511,9.48,129.4,129.36,9.48]
[1726657689708,9.48,129.4,129.36,13.36003581]
[1726657689912,9.48,129.4,129.36,9.48]
[1726657690108,5.88,129.4,129.36,13.31672666]
[1726657690310,5.88,129.4,129.37,1.4225]
[1726657693715,1.98,129.4,129.37,1.4225]
[1726657693916,9.48,129.41,129.37,10.9025]
[1726657694118,9.48,129.41,129.37,14.72162156]
[1726657697518,9.48,129.42,129.38,9.48]
[1726657698922,9.48,129.43,129.39,9.48]
[1726657703923,9.48,129.44,129.4,9.48]
[1726657705023,202.00453095,129.51,129.4,9.48]
[1726657705217,150.84,129.54,129.43,9.48]
[1726657705419,9.48,129.47,129.43,9.48]
[1726657705624,9.48,129.47,129.38,5.27133755]
[1726657705625,9.48,129.48,129.44,9.48]
[1726657707923,5.68,129.48,129.44,9.48]
[1726657708125,150.84,129.54,129.44,9.48]
[1726657708423,9.48,129.49,129.45,9.48]
[1726657708627,9.48,129.49,129.45,13.30478366]
[1726657709731,5.68,129.49,129.45,9.48]
[1726657710234,5.68,129.49,129.45,13.33415156]
[1726657710626,5.68,129.49,129.46,9.48]
[1726657712932,199.00453095,129.58,129.38,1.4991]
[1726657713135,9.48,129.5,129.46,9.48]
[1726657713933,9.48,129.51,129.47,9.48]
[1726657721136,9.48,129.52,129.48,9.48]
[1726657726437,9.48,129.5,129.46,3.93877751]
[1726657726635,9.48,129.5,129.46,9.48]
[1726657726834,9.48,129.5,129.46,13.26527169]
[1726657727137,9.48,129.48,129.46,3.78527169]
[1726657727328,9.48,129.48,129.43,9.48]
[1726657727532,9.48,129.48,129.43,13.3758397]
[1726657728637,5.58,129.48,129.43,9.48]
[1726657728840,5.58,129.48,129.4,1.4524]
[1726657729045,5.58,129.48,129.44,9.48]
[1726657729737,5.58,129.48,129.44,13.42683136]
[1726657733139,9.48,129.49,129.44,13.42683136]
[1726657734545,9.48,129.49,129.45,9.48]
[1726657735747,9.48,129.49,129.45,13.3748964]
[1726657738446,9.48,129.5,129.45,13.3748964]
[1726657739250,199.00453095,129.56,129.46,9.48]
[1726657739545,9.48,129.51,129.47,9.48]
[1726657740847,9.48,129.51,129.47,13.3041925]
[1726657741948,154.56,129.58,129.48,9.48]
[1726657742149,9.48,129.53,129.48,9.48]
[1726657742949,9.48,129.52,129.48,9.48]
[1726657743150,9.48,129.52,129.48,13.3768282]
[1726657745946,9.48,129.53,129.49,9.48]
[1726657747253,9.48,129.53,129.49,13.34639293]
[1726657747444,7.38,129.53,129.49,9.48]
[1726657747643,7.38,129.53,129.49,13.28110965]
[1726657749154,147.84,129.6,129.51,9.48]
[1726657749346,9.48,129.55,129.51,13.40008747]
[1726657750254,147.84,129.6,129.4,9.1834]
[1726657750553,9.48,129.56,129.51,9.48]
[1726657750749,9.48,129.56,129.51,13.39292088]
[1726657752555,9.48,129.55,129.51,3.91292088]
[1726657752755,9.48,129.54,129.4,50.22976024]
[1726657752954,9.48,129.53,129.48,9.48]
[1726657753252,9.48,129.53,129.48,13.31759812]
[1726657753754,9.48,129.52,129.48,3.83759812]
[1726657753959,9.48,129.49,129.4,23.02824935]
[1726657754149,9.48,129.48,129.4,5.37768154]
[1726657754344,9.48,129.48,129.44,9.48]
[1726657754549,9.48,129.47,129.44,9.48]
[1726657755249,9.48,129.47,129.4,5.37768154]
[1726657755461,9.48,129.46,129.42,9.48]
[1726657757551,9.48,129.46,129.4,5.37768154]
[1726657757755,9.48,129.46,129.42,9.48]
[1726657758156,9.48,129.44,129.4,5.37768154]
[1726657758356,9.48,129.43,129.4,5.37768154]
[1726657763153,154.54,129.54,129.4,3.92528154]
[1726657763353,154.54,129.54,129.37,1.4225]
[1726657763354,9.48,129.41,129.37,1.4225]
[1726657764463,9.48,129.4,129.37,5.29059931]
[1726657764760,154.58,129.49,129.37,5.29059931]
[1726657764761,154.58,129.49,129.37,3.86809931]
[1726657764958,9.48,129.39,129.35,9.48]
[1726657765556,9.48,129.39,129.35,13.28625301]
[1726657765753,9.48,129.39,129.35,9.48]
[1726657765954,9.48,129.39,129.35,13.41262549]
[1726657766160,9.48,129.39,129.35,3.93262549]
[1726657766362,9.48,129.37,129.34,9.48]
[1726657766965,9.48,129.37,129.34,13.39058422]
[1726657768163,353.58453095,129.49,129.32,1.5018]
[1726657768366,353.58453095,129.49,129.32,5.43829238]
[1726657768664,353.58453095,129.49,129.36,9.48]
[1726657768665,9.48,129.4,129.36,9.48]
[1726657768865,9.48,129.4,129.36,13.40063813]
[1726657771165,353.58453095,129.49,129.36,13.40063813]
[1726657771364,9.48,129.4,129.36,13.40063813]
[1726657774873,154.58,129.49,129.36,3.92063813]
[1726657774874,9.48,129.39,129.36,3.92063813]
[1726657775069,9.48,129.39,129.35,9.48]
[1726657775373,5.59,129.39,129.34,9.48]
[1726657777774,353.58453095,129.49,129.33,9.48]
[1726657777775,9.48,129.38,129.33,9.48]
[1726657777979,9.48,129.36,129.33,9.48]
[1726657778575,9.48,129.38,129.33,9.48]
[1726657779679,9.48,129.39,129.35,9.48]
[1726657801696,9.48,129.38,129.35,9.48]
[1726657803099,154.68,129.48,129.35,9.48]
[1726657803298,9.48,129.39,129.35,9.48]
[1726657803697,9.48,129.39,129.35,13.42453125]
[1726657808499,9.48,129.39,129.35,3.94453125]
[1726657808799,9.48,129.39,129.34,9.48]
[1726657809190,9.48,129.39,129.34,13.33064745]
[1726657809397,9.48,129.36,129.34,3.85064745]
[1726657809598,9.48,129.36,129.32,10.9818]
[1726657810002,9.48,129.35,129.32,5.44757291]
[1726657810603,162.75607289,129.49,129.32,1.5018]
[1726657811200,162.75607289,129.49,129.32,5.449425]
[1726657811397,162.75607289,129.49,129.32,1.5018]
[1726657811595,9.48,129.37,129.33,9.48]
[1726657811802,9.48,129.37,129.33,13.31508984]
[1726657813106,195.04453095,129.47,129.33,9.48]
[1726657813309,9.48,129.39,129.34,9.48]
[1726657813607,9.48,129.39,129.35,9.48]
[1726657816706,154.68,129.49,129.35,9.48]
[1726657816907,9.48,129.39,129.35,9.48]
[1726657817408,9.48,129.38,129.32,5.31484687]
[1726657817606,9.48,129.38,129.34,9.48]
[1726657820911,154.68,129.49,129.34,9.48]
[1726657821113,9.48,129.38,129.32,5.31484687]
[1726657821309,9.48,129.38,129.33,10.90110774]
[1726657821510,9.48,129.38,129.33,9.48]
[1726657821908,9.48,129.38,129.32,5.31484687]
[1726657822106,9.48,129.38,129.33,10.9011063]
[1726657822307,9.48,129.38,129.33,9.48]
[1726657822811,9.48,129.37,129.32,5.31484687]
[1726657823006,9.48,129.37,129.33,10.9011063]
[1726657823312,9.48,129.37,129.33,9.48]
[1726657823804,9.48,129.39,129.34,9.48]
[1726657825304,154.68,129.49,129.34,9.48]
[1726657825509,9.48,129.39,129.34,9.48]
[1726657825811,9.48,129.39,129.35,37.15377827]
[1726657826214,154.68,129.48,129.36,37.15377827]
[1726657826413,9.48,129.39,129.36,19.4876116]
[1726657826610,9.48,129.39,129.34,9.48]
[1726657827214,9.48,129.38,129.32,5.30952499]
[1726657827409,9.48,129.38,129.34,9.48]
[1726657827615,9.48,129.38,129.35,37.16693989]
[1726657827816,9.48,129.38,129.36,37.16693989]
[1726657828012,9.48,129.38,129.37,37.16693989]
[1726657828319,9.48,129.38,129.37,51.31388962]
[1726657833620,9.48,129.38,129.34,9.48]
[1726657838525,9.48,129.4,129.35,9.48]
[1726657840523,9.48,129.39,129.35,9.48]
[1726657840729,9.48,129.39,129.36,51.29347073]
[1726657840928,9.48,129.39,129.37,51.29347073]
[1726657841134,9.48,129.39,129.38,51.29347073]
[1726657842231,9.48,129.39,129.32,14.78952499]
[1726657842422,9.48,129.35,129.32,14.78952499]
[1726657842829,154.68,129.48,129.32,14.78952499]
[1726657843029,9.48,129.35,129.32,14.78952499]
[1726657843222,195.04453095,129.46,129.32,14.78952499]
[1726657843427,9.48,129.35,129.32,14.78952499]
[1726657844125,9.48,129.35,129.32,5.30952499]
[1726657844324,154.68,129.48,129.32,3.80772499]
[1726657844325,9.48,129.33,129.32,3.80772499]
[1726657844632,9.48,129.33,129.31,1.4754]
[1726657844932,9.48,129.32,129.28,9.48]
[1726657845231,9.48,129.32,129.28,13.26404296]
[1726657848333,9.48,129.32,129.28,3.78404296]
[1726657848532,9.48,129.32,129.28,9.48]
[1726657848737,9.48,129.32,129.28,13.31425245]
[1726657850732,9.48,129.31,129.28,13.31425245]
[1726657851535,154.7,129.4,129.29,9.48]
[1726657851737,9.48,129.33,129.29,9.48]
[1726657852129,9.48,129.32,129.29,9.48]
[1726657852536,9.48,129.32,129.28,13.31425245]
[1726657855537,9.48,129.32,129.29,9.48]
[1726657855929,9.48,129.32,129.3,16.98583504]
[1726657856136,9.48,129.32,129.29,9.48]
[1726657856338,9.48,129.32,129.3,34.63900137]
[1726657856533,9.48,129.32,129.29,9.48]
[1726657856732,9.48,129.32,129.3,34.64118226]
[1726657856938,9.48,129.32,129.29,9.48]
[1726657857136,9.48,129.32,129.3,34.64197544]
[1726657857334,9.48,129.32,129.29,9.48]
[1726657857535,9.48,129.32,129.3,34.64197544]
[1726657857741,9.48,129.32,129.29,9.48]
[1726657858038,9.48,129.32,129.3,34.64318358]
[1726657858241,9.48,129.32,129.29,9.48]
[1726657858438,9.48,129.32,129.3,34.64348605]
[1726657858638,9.48,129.32,129.3,16.98869894]
[1726657858829,9.48,129.32,129.29,9.48]
[1726657859036,9.48,129.32,129.3,34.64427456]
[1726657859236,9.48,129.32,129.29,9.48]
[1726657859440,9.48,129.32,129.3,16.98895485]
[1726657859638,154.7,129.4,129.24,4.3012]
[1726657859844,9.48,129.34,129.3,9.48]
[1726657860138,9.48,129.34,129.31,34.63566297]
[1726657860440,9.48,129.34,129.31,3.92972616]
[1726657860742,9.48,129.34,129.3,9.48]
[1726657860941,9.48,129.34,129.31,16.98262205]
[1726657861138,9.48,129.34,129.31,38.53301065]
[1726657861344,9.48,129.34,129.31,21.5503886]
[1726657861643,9.48,129.35,129.31,9.48]
[1726657861844,9.48,129.35,129.31,13.38844675]
[1726657862243,5.68,129.35,129.31,9.48]
[1726657862649,5.68,129.35,129.31,13.26966897]
[1726657864548,2.68,129.35,129.31,9.48]
[1726657865147,2.68,129.35,129.31,13.28262186]
[1726657868551,9.48,129.34,129.31,13.28262186]
[1726657875861,9.48,129.35,129.31,13.28262186]
[1726657876865,9.48,129.35,129.32,9.48]
[1726657877857,154.72,129.43,129.32,9.48]
[1726657877858,9.48,129.36,129.32,9.48]
[1726657878064,9.48,129.36,129.32,13.38367148]
[1726657880461,9.48,129.36,129.32,3.90367148]
[1726657880661,9.48,129.35,129.3,1.492]
[1726657880857,9.48,129.35,129.3,10.972]
[1726657881262,9.48,129.34,129.3,14.77674094]
[1726657881465,153.72,129.43,129.3,14.77674094]
[1726657881466,9.48,129.35,129.3,14.77674094]
[1726657882167,9.48,129.35,129.31,9.48]
[1726657882470,9.48,129.35,129.32,9.48]
[1726657885564,9.48,129.35,129.31,9.48]
[1726657886763,9.48,129.35,129.32,9.48]
[1726657892472,9.48,129.35,129.31,9.48]
[1726657892869,9.48,129.34,129.3,14.77674094]
[1726657893172,9.48,129.32,129.3,3.80474094]
[1726657893373,9.48,129.32,129.29,2.8441]
[1726657893875,9.48,129.32,129.29,6.76509442]
[1726657895074,9.48,129.33,129.29,16.24509442]
[1726657896267,9.48,129.33,129.29,6.76509442]
[1726657898671,9.48,129.33,129.29,16.24509442]
[1726657899276,9.48,129.33,129.3,17.00100326]
[1726657899478,9.48,129.33,129.29,16.24509442]
[1726657899676,9.48,129.33,129.3,17.00084328]
[1726657899867,9.48,129.33,129.29,16.24509442]
[1726657900071,9.48,129.33,129.3,16.99857979]
[1726657900271,9.48,129.33,129.29,16.24509442]
[1726657902286,9.48,129.33,129.29,12.3241]
[1726657902583,9.48,129.33,129.29,16.20477666]
[1726657903684,9.48,129.34,129.3,9.48]
[1726657903985,9.48,129.34,129.3,13.2805949]
[1726657905786,5.56,129.34,129.3,9.48]
[1726657905981,5.56,129.34,129.3,13.40439278]
[1726657907085,1.66,129.34,129.3,9.48]
[1726657907474,1.66,129.34,129.3,13.34249384]
[1726657909483,150.94,129.41,129.32,9.48]
[1726657909687,6.48,129.36,129.29,2.8441]
[1726657909893,6.48,129.36,129.32,9.48]
[1726657910192,9.48,129.37,129.32,9.48]
[1726657910680,9.48,129.37,129.32,13.29693488]
[1726657911490,147.84,129.44,129.34,9.48]
[1726657911684,147.84,129.44,129.34,13.42746224]
[1726657911685,9.48,129.38,129.34,13.42746224]
[1726657912679,147.84,129.44,129.34,3.94746224]
[1726657912880,9.48,129.35,129.31,9.48]
[1726657913082,9.48,129.35,129.31,13.34198417]
[1726657913490,9.48,129.34,129.31,3.86198417]
[1726657913792,9.48,129.34,129.3,10.8964]
[1726657914185,9.48,129.34,129.3,14.81175962]
[1726657914984,9.48,129.34,129.3,5.33175962]
[1726657915285,147.84,129.44,129.3,5.33175962]
[1726657915286,9.48,129.37,129.32,9.48]
[1726657915790,9.48,129.37,129.33,17.65566322]
[1726657916088,9.48,129.37,129.32,9.48]
[1726657916289,9.48,129.37,129.33,17.65452896]
[1726657916591,9.48,129.37,129.32,9.48]
[1726657916784,9.48,129.37,129.33,34.64998668]
[1726657916985,9.48,129.37,129.32,9.48]
[1726657917185,9.48,129.37,129.33,34.64990866]
[1726657917385,9.48,129.37,129.32,9.48]
[1726657917587,9.48,129.37,129.33,34.65152243]
[1726657917987,9.48,129.37,129.32,9.48]
[1726657918190,9.48,129.37,129.33,34.64374698]
[1726657918483,9.48,129.34,129.3,5.33175962]
[1726657918688,9.48,129.34,129.31,34.65169521]
[1726657918880,9.48,129.34,129.32,34.65169521]
[1726657919091,9.48,129.34,129.3,5.33175962]
[1726657919294,9.48,129.34,129.31,34.65077095]
[1726657919490,9.48,129.34,129.32,34.65077095]
[1726657919686,9.48,129.34,129.3,14.81175962]
[1726657919886,9.48,129.34,129.31,34.65072172]
[1726657920190,9.48,129.34,129.32,34.65072172]
[1726657920393,9.48,129.34,129.3,14.81175962]
[1726657920589,9.48,129.34,129.31,34.64796546]
[1726657920788,9.48,129.35,129.31,34.64796546]
[1726657920988,9.48,129.35,129.32,17.65703873]
[1726657921190,9.48,129.35,129.31,26.47092673]
[1726657921390,9.48,129.35,129.32,34.6480105]
[1726657921595,9.48,129.35,129.31,9.48]
[1726657921596,9.48,129.36,129.31,9.48]
[1726657921793,9.48,129.36,129.32,44.12347394]
[1726657921991,9.48,129.36,129.33,34.64347394]
[1726657922193,9.48,129.36,129.32,9.48]
[1726657922382,9.48,129.36,129.33,34.64325023]
[1726657922591,9.48,129.37,129.32,9.48]
[1726657922790,9.48,129.37,129.33,34.6418373]
[1726657922994,9.48,129.37,129.32,9.48]
[1726657923491,9.48,129.38,129.34,9.48]